[Event "Titled Tuesday Blitz March 07 Early 2023"]
[White "Osmak, Yuliia"]
[Black "Dwilewicz, Katarzyna"]
[WhiteFideId "14101602"]
[BlackFideId "1148486"]
[WhiteElo "2271"]
[BlackElo "2065"]
[Result "1-0"]
[Round "02"]
[TimeControl "180+2"]
[Date "2023.03.07"]
[WhiteClock "0:00:06"]
[BlackClock "0:00:02"]

1. b4 {[%clk 0:03:00]}  e5 {[%clk 0:02:59]} 2. Bb2 {[%clk 0:02:56]}  Bxb4 {[%clk 0:02:59]} 3. Bxe5 {[%clk 0:02:56]}  Nf6 {[%clk 0:02:59]} 4. e3 {[%clk 0:02:56]}  O-O {[%clk 0:02:58]} 5. Nf3 {[%clk 0:02:57]}  Nc6 {[%clk 0:02:57]} 6. Bb2 {[%clk 0:02:56]}  d5 {[%clk 0:02:58]} 7. Be2 {[%clk 0:02:56]}  Bf5 {[%clk 0:02:55]} 8. O-O {[%clk 0:02:48]}  Re8 {[%clk 0:02:55]} 9. d3 {[%clk 0:02:48]}  h6 {[%clk 0:02:52]} 10. Nbd2 {[%clk 0:02:48]}  Bd6 {[%clk 0:02:39]} 11. c4 {[%clk 0:02:46]}  Nb4 {[%clk 0:02:17]} 12. Qb3 {[%clk 0:02:36]}  a5 {[%clk 0:01:57]} 13. Bxf6 {[%clk 0:02:16]}  Qxf6 {[%clk 0:01:56]} 14. cxd5 {[%clk 0:02:10]}  a4 {[%clk 0:01:25]} 15. Qc4 {[%clk 0:02:08]}  Rab8 {[%clk 0:01:14]} 16. e4 {[%clk 0:02:05]}  b5 {[%clk 0:01:07]} 17. Qd4 {[%clk 0:01:54]}  Qxd4 {[%clk 0:00:47]} 18. Nxd4 {[%clk 0:01:55]}  Bd7 {[%clk 0:00:48]} 19. a3 {[%clk 0:01:48]}  Na6 {[%clk 0:00:31]} 20. N2f3 {[%clk 0:01:44]}  f5 {[%clk 0:00:23]} 21. exf5 {[%clk 0:01:39]}  Nc5 {[%clk 0:00:20]} 22. Ne6 {[%clk 0:01:37]}  c6 {[%clk 0:00:15]} 23. dxc6 {[%clk 0:01:04]}  Bxc6 {[%clk 0:00:09]} 24. Nfd4 {[%clk 0:00:39]}  Bd7 {[%clk 0:00:06]} 25. Rfc1 {[%clk 0:00:31]}  Nxe6 {[%clk 0:00:05]} 26. fxe6 {[%clk 0:00:28]}  Bxe6 {[%clk 0:00:06]} 27. Nxe6 {[%clk 0:00:27]}  Rxe6 {[%clk 0:00:06]} 28. Bf3 {[%clk 0:00:28]}  Kf8 {[%clk 0:00:05]} 29. g3 {[%clk 0:00:20]}  Be7 {[%clk 0:00:06]} 30. d4 {[%clk 0:00:14]}  Rd6 {[%clk 0:00:06]} 31. d5 {[%clk 0:00:13]}  Bf6 {[%clk 0:00:06]} 32. Rab1 {[%clk 0:00:13]}  Rdb6 {[%clk 0:00:05]} 33. Rc6 {[%clk 0:00:09]}  Be7 {[%clk 0:00:04]} 34. Be2 {[%clk 0:00:07]}  Rxc6 {[%clk 0:00:02]} 35. dxc6 {[%clk 0:00:07]}  b4 {[%clk 0:00:02]} 36. axb4 {[%clk 0:00:07]}  Rc8 {[%clk 0:00:01]} 37. b5 {[%clk 0:00:06]}  a3 {[%clk 0:00:02]} 38. Ra1 {[%clk 0:00:06]} 1-0


[Site "https://www.chess.com"]

[Event "Titled Tuesday Blitz March 07 Early 2023"]
[White "Dishman, Stephen"]
[Black "Balla, Tamas-Kristof"]
[WhiteFideId "403024"]
[BlackFideId "1208497"]
[WhiteElo "2204"]
[BlackElo "2334"]
[Result "0-1"]
[Round "02"]
[TimeControl "180+2"]
[Date "2023.03.07"]
[WhiteClock "0:00:23"]
[BlackClock "0:00:22"]

1. Nf3 {[%clk 0:03:00]}  c5 {[%clk 0:02:59]} 2. c4 {[%clk 0:03:00]}  Nc6 {[%clk 0:02:59]} 3. b3 {[%clk 0:03:00]}  g6 {[%clk 0:02:47]} 4. Bb2 {[%clk 0:03:00]}  Nf6 {[%clk 0:02:48]} 5. g3 {[%clk 0:03:00]}  Bg7 {[%clk 0:02:47]} 6. Bg2 {[%clk 0:03:01]}  O-O {[%clk 0:02:45]} 7. O-O {[%clk 0:03:01]}  e6 {[%clk 0:02:38]} 8. d4 {[%clk 0:03:00]}  cxd4 {[%clk 0:02:37]} 9. Nxd4 {[%clk 0:03:00]}  d5 {[%clk 0:02:31]} 10. cxd5 {[%clk 0:02:51]}  exd5 {[%clk 0:02:25]} 11. Nxc6 {[%clk 0:02:41]}  bxc6 {[%clk 0:02:26]} 12. Nc3 {[%clk 0:02:34]}  Re8 {[%clk 0:02:25]} 13. e3 {[%clk 0:02:30]}  Be6 {[%clk 0:02:06]} 14. Na4 {[%clk 0:02:28]}  Qc8 {[%clk 0:01:57]} 15. Re1 {[%clk 0:02:26]}  Bh3 {[%clk 0:01:57]} 16. Bh1 {[%clk 0:02:21]}  Qf5 {[%clk 0:01:56]} 17. Qf3 {[%clk 0:02:03]}  Qg5 {[%clk 0:01:43]} 18. Qf4 {[%clk 0:02:00]}  Qxf4 {[%clk 0:01:21]} 19. gxf4 {[%clk 0:02:00]}  Re7 {[%clk 0:00:53]} 20. Rac1 {[%clk 0:01:58]}  Rae8 {[%clk 0:00:29]} 21. Rxc6 {[%clk 0:01:50]}  Nh5 {[%clk 0:00:29]} 22. Bxg7 {[%clk 0:01:43]}  Kxg7 {[%clk 0:00:30]} 23. Bxd5 {[%clk 0:01:34]}  Nxf4 {[%clk 0:00:29]} 24. Bf3 {[%clk 0:01:31]}  Nd3 {[%clk 0:00:23]} 25. Rd1 {[%clk 0:01:27]}  Ne5 {[%clk 0:00:23]} 26. Bh1 {[%clk 0:01:20]}  Nxc6 {[%clk 0:00:22]} 27. Bxc6 {[%clk 0:01:21]}  Rc8 {[%clk 0:00:22]} 28. Bg2 {[%clk 0:00:48]}  Bxg2 {[%clk 0:00:22]} 29. Kxg2 {[%clk 0:00:49]}  Rc2 {[%clk 0:00:23]} 30. a3 {[%clk 0:00:48]}  Rxe3 {[%clk 0:00:23]} 31. Rd7 {[%clk 0:00:24]}  Rxb3 {[%clk 0:00:21]} 32. Rxa7 {[%clk 0:00:23]}  Rxa3 {[%clk 0:00:22]} 0-1


[Site "https://www.chess.com"]

[Event "Titled Tuesday Blitz March 07 Early 2023"]
[White "Liu, Kelsey"]
[Black "Kozin, Yuri"]
[WhiteFideId "30944481"]
[BlackFideId "4129920"]
[WhiteElo "2315"]
[BlackElo "2505"]
[Result "0-1"]
[Round "02"]
[TimeControl "180+2"]
[Date "2023.03.07"]
[WhiteClock "0:00:03"]
[BlackClock "0:01:09"]

1. e4 {[%clk 0:03:00]}  c5 {[%clk 0:03:00]} 2. Nf3 {[%clk 0:03:00]}  e6 {[%clk 0:03:00]} 3. d4 {[%clk 0:02:59]}  cxd4 {[%clk 0:03:01]} 4. Nxd4 {[%clk 0:03:00]}  Nf6 {[%clk 0:03:01]} 5. Nc3 {[%clk 0:02:58]}  d6 {[%clk 0:03:02]} 6. Bd3 {[%clk 0:02:52]}  a6 {[%clk 0:02:56]} 7. Be3 {[%clk 0:02:50]}  Qc7 {[%clk 0:02:56]} 8. a4 {[%clk 0:02:46]}  Bd7 {[%clk 0:02:55]} 9. O-O {[%clk 0:02:46]}  Nc6 {[%clk 0:02:47]} 10. Nxc6 {[%clk 0:02:42]}  Bxc6 {[%clk 0:02:47]} 11. a5 {[%clk 0:02:41]}  Be7 {[%clk 0:02:37]} 12. Qd2 {[%clk 0:02:40]}  O-O {[%clk 0:02:36]} 13. f3 {[%clk 0:02:40]}  d5 {[%clk 0:02:34]} 14. Na4 {[%clk 0:02:32]}  dxe4 {[%clk 0:02:31]} 15. fxe4 {[%clk 0:02:28]}  Nxe4 {[%clk 0:02:28]} 16. Qe1 {[%clk 0:02:24]}  Nf6 {[%clk 0:02:22]} 17. Bb6 {[%clk 0:02:21]}  Qb8 {[%clk 0:02:14]} 18. Qh4 {[%clk 0:02:14]}  h6 {[%clk 0:02:11]} 19. Qh3 {[%clk 0:01:45]}  Qe5 {[%clk 0:02:05]} 20. Rae1 {[%clk 0:01:39]}  Qh5 {[%clk 0:02:05]} 21. Qg3 {[%clk 0:01:28]}  Bxa4 {[%clk 0:01:56]} 22. Re5 {[%clk 0:01:24]}  Qg4 {[%clk 0:01:55]} 23. Qe1 {[%clk 0:01:13]}  Bc6 {[%clk 0:01:53]} 24. g3 {[%clk 0:01:10]}  Qh3 {[%clk 0:01:51]} 25. Qe2 {[%clk 0:01:05]}  Bd6 {[%clk 0:01:37]} 26. Re3 {[%clk 0:00:25]}  Nd5 {[%clk 0:01:30]} 27. Re4 {[%clk 0:00:05]}  Nxb6 {[%clk 0:01:27]} 28. Rh4 {[%clk 0:00:05]}  Qg2+ {[%clk 0:01:23]} 29. Qxg2 {[%clk 0:00:05]}  Bxg2 {[%clk 0:01:23]} 30. Kxg2 {[%clk 0:00:06]}  Nd5 {[%clk 0:01:20]} 31. c4 {[%clk 0:00:05]}  Nf6 {[%clk 0:01:17]} 32. g4 {[%clk 0:00:03]}  Rad8 {[%clk 0:01:15]} 33. g5 {[%clk 0:00:03]}  hxg5 {[%clk 0:01:13]} 34. Rh3 {[%clk 0:00:03]}  Bf4 {[%clk 0:01:09]} 0-1


[Site "https://www.chess.com"]

[Event "Titled Tuesday Blitz March 07 Early 2023"]
[White "surrenderPLS"]
[Black "Liu, Casper"]
[BlackFideId "1454153"]
[WhiteElo "2502"]
[BlackElo "2221"]
[Result "0-1"]
[Round "02"]
[TimeControl "180+2"]
[Date "2023.03.07"]
[WhiteClock "0:00:15"]
[BlackClock "0:00:13"]

1. e4 {[%clk 0:03:00]}  c5 {[%clk 0:02:57]} 2. Nf3 {[%clk 0:03:00]}  e6 {[%clk 0:02:57]} 3. d4 {[%clk 0:03:00]}  cxd4 {[%clk 0:02:58]} 4. Nxd4 {[%clk 0:03:01]}  a6 {[%clk 0:02:58]} 5. Bd3 {[%clk 0:03:01]}  Bc5 {[%clk 0:02:58]} 6. Nb3 {[%clk 0:03:00]}  Ba7 {[%clk 0:02:59]} 7. O-O {[%clk 0:02:57]}  Nc6 {[%clk 0:02:59]} 8. Nc3 {[%clk 0:02:56]}  Nge7 {[%clk 0:02:53]} 9. Bf4 {[%clk 0:02:55]}  Ng6 {[%clk 0:02:52]} 10. Bd6 {[%clk 0:02:54]}  Nce7 {[%clk 0:02:14]} 11. Kh1 {[%clk 0:02:50]}  b5 {[%clk 0:01:55]} 12. a4 {[%clk 0:02:41]}  bxa4 {[%clk 0:01:36]} 13. Rxa4 {[%clk 0:02:42]}  Bb7 {[%clk 0:01:35]} 14. Bxa6 {[%clk 0:02:25]}  Bc6 {[%clk 0:01:27]} 15. Bb5 {[%clk 0:02:12]}  Bb7 {[%clk 0:01:03]} 16. f4 {[%clk 0:02:03]}  f5 {[%clk 0:01:02]} 17. exf5 {[%clk 0:00:46]}  Nxf5 {[%clk 0:01:02]} 18. Re1 {[%clk 0:00:45]}  Ne3 {[%clk 0:00:53]} 19. Rxe3 {[%clk 0:00:20]}  Bxe3 {[%clk 0:00:54]} 20. Qe2 {[%clk 0:00:20]}  Rxa4 {[%clk 0:00:47]} 21. Qxe3 {[%clk 0:00:14]}  Ra8 {[%clk 0:00:13]} 22. Qxe6+ {[%clk 0:00:13]}  Ne7 {[%clk 0:00:14]} 23. h3 {[%clk 0:00:08]}  Kf8 {[%clk 0:00:14]} 24. Qf5+ {[%clk 0:00:06]}  Ke8 {[%clk 0:00:10]} 25. Qe5 {[%clk 0:00:05]}  Rc8 {[%clk 0:00:06]} 26. Nc5 {[%clk 0:00:04]}  Kf7 {[%clk 0:00:07]} 27. Nxb7 {[%clk 0:00:03]}  Qe8 {[%clk 0:00:04]} 28. Nd5 {[%clk 0:00:03]}  Nxd5 {[%clk 0:00:04]} 29. Qxd5+ {[%clk 0:00:04]}  Qe6 {[%clk 0:00:04]} 30. Qxe6+ {[%clk 0:00:04]}  dxe6 {[%clk 0:00:04]} 31. Be5 {[%clk 0:00:04]}  Rxc2 {[%clk 0:00:04]} 32. Nd6+ {[%clk 0:00:05]}  Ke7 {[%clk 0:00:04]} 33. Kh2 {[%clk 0:00:06]}  Rg8 {[%clk 0:00:04]} 34. Bd3 {[%clk 0:00:06]}  Rd2 {[%clk 0:00:03]} 35. Bc3 {[%clk 0:00:06]}  Rxd3 {[%clk 0:00:02]} 36. Nc4 {[%clk 0:00:06]}  g5 {[%clk 0:00:02]} 37. fxg5 {[%clk 0:00:07]}  Rxg5 {[%clk 0:00:03]} 38. Ne5 {[%clk 0:00:07]}  Rxc3 {[%clk 0:00:01]} 39. Nf3 {[%clk 0:00:04]}  Rf5 {[%clk 0:00:01]} 40. Nh4 {[%clk 0:00:04]}  Rfc5 {[%clk 0:00:02]} 41. Kg1 {[%clk 0:00:04]}  Rc2 {[%clk 0:00:02]} 42. Kh2 {[%clk 0:00:05]}  Rc1 {[%clk 0:00:03]} 43. Nf3 {[%clk 0:00:06]}  Kd6 {[%clk 0:00:04]} 44. Ne5 {[%clk 0:00:07]}  R5c3 {[%clk 0:00:05]} 45. Nd3 {[%clk 0:00:08]}  R3c2 {[%clk 0:00:06]} 46. Nb4 {[%clk 0:00:08]}  Rxb2 {[%clk 0:00:06]} 47. Na6 {[%clk 0:00:08]}  Rbc2 {[%clk 0:00:07]} 48. Nb4 {[%clk 0:00:08]}  Ke7 {[%clk 0:00:08]} 49. Kg3 {[%clk 0:00:08]}  e5 {[%clk 0:00:08]} 50. Kh4 {[%clk 0:00:08]}  Rc4+ {[%clk 0:00:09]} 51. Kh5 {[%clk 0:00:08]}  Rxb4 {[%clk 0:00:10]} 52. g4 {[%clk 0:00:09]}  Rg1 {[%clk 0:00:10]} 53. h4 {[%clk 0:00:10]}  e4 {[%clk 0:00:10]} 54. g5 {[%clk 0:00:11]}  e3 {[%clk 0:00:11]} 55. Kh6 {[%clk 0:00:12]}  e2 {[%clk 0:00:12]} 56. h5 {[%clk 0:00:12]}  e1=Q {[%clk 0:00:12]} 57. Kxh7 {[%clk 0:00:13]}  Qe6 {[%clk 0:00:12]} 58. h6 {[%clk 0:00:14]}  Qf7+ {[%clk 0:00:12]} 59. Kh8 {[%clk 0:00:15]}  Rb8# {[%clk 0:00:13]} 0-1


[Site "https://www.chess.com"]

[Event "Titled Tuesday Blitz March 07 Early 2023"]
[White "TimGrutter03"]
[Black "Mikhaylova, Irina"]
[BlackFideId "4109040"]
[WhiteElo "2496"]
[BlackElo "1966"]
[Result "1-0"]
[Round "02"]
[TimeControl "180+2"]
[Date "2023.03.07"]
[WhiteClock "0:00:20"]
[BlackClock "0:00:21"]

1. e4 {[%clk 0:03:00]}  c5 {[%clk 0:02:59]} 2. Nf3 {[%clk 0:02:59]}  Nc6 {[%clk 0:03:00]} 3. Bb5 {[%clk 0:02:58]}  e6 {[%clk 0:03:00]} 4. Bxc6 {[%clk 0:02:54]}  bxc6 {[%clk 0:02:59]} 5. O-O {[%clk 0:02:53]}  Ne7 {[%clk 0:02:59]} 6. d3 {[%clk 0:02:53]}  Ng6 {[%clk 0:02:59]} 7. Qe2 {[%clk 0:02:47]}  Be7 {[%clk 0:02:59]} 8. Nbd2 {[%clk 0:02:45]}  O-O {[%clk 0:02:59]} 9. e5 {[%clk 0:02:38]}  f6 {[%clk 0:02:59]} 10. Nc4 {[%clk 0:02:36]}  Qc7 {[%clk 0:02:59]} 11. b3 {[%clk 0:02:21]}  fxe5 {[%clk 0:02:57]} 12. Nfxe5 {[%clk 0:02:16]}  Nxe5 {[%clk 0:02:57]} 13. Nxe5 {[%clk 0:02:14]}  d6 {[%clk 0:02:57]} 14. Nc4 {[%clk 0:02:11]}  e5 {[%clk 0:02:57]} 15. f4 {[%clk 0:02:02]}  exf4 {[%clk 0:01:32]} 16. Bxf4 {[%clk 0:02:01]}  Bf5 {[%clk 0:01:28]} 17. Rae1 {[%clk 0:01:27]}  Rae8 {[%clk 0:01:23]} 18. Qd2 {[%clk 0:01:25]}  Qd7 {[%clk 0:01:12]} 19. Rxe7 {[%clk 0:01:14]}  Rxe7 {[%clk 0:00:52]} 20. Bxd6 {[%clk 0:01:12]}  Ref7 {[%clk 0:00:31]} 21. Bxf8 {[%clk 0:01:05]}  Rxf8 {[%clk 0:00:31]} 22. Qf4 {[%clk 0:01:01]}  Qe7 {[%clk 0:00:26]} 23. g4 {[%clk 0:00:46]}  Be6 {[%clk 0:00:23]} 24. Qxf8+ {[%clk 0:00:44]}  Qxf8 {[%clk 0:00:24]} 25. Rxf8+ {[%clk 0:00:44]}  Kxf8 {[%clk 0:00:25]} 26. h3 {[%clk 0:00:40]}  h6 {[%clk 0:00:19]} 27. Kf2 {[%clk 0:00:39]}  h5 {[%clk 0:00:19]} 28. Kf3 {[%clk 0:00:31]}  hxg4+ {[%clk 0:00:20]} 29. hxg4 {[%clk 0:00:32]}  Ke7 {[%clk 0:00:21]} 30. Kf4 {[%clk 0:00:30]}  Kf6 {[%clk 0:00:20]} 31. g5+ {[%clk 0:00:30]}  Ke7 {[%clk 0:00:20]} 32. Ke5 {[%clk 0:00:27]}  Bd7 {[%clk 0:00:20]} 33. Nd6 {[%clk 0:00:24]}  Bg4 {[%clk 0:00:20]} 34. Ne4 {[%clk 0:00:17]}  Bd1 {[%clk 0:00:20]} 35. c3 {[%clk 0:00:17]}  Bc2 {[%clk 0:00:19]} 36. Nxc5 {[%clk 0:00:17]}  Bb1 {[%clk 0:00:19]} 37. a4 {[%clk 0:00:17]}  Ba2 {[%clk 0:00:18]} 38. b4 {[%clk 0:00:18]}  Bb1 {[%clk 0:00:18]} 39. d4 {[%clk 0:00:18]}  Bc2 {[%clk 0:00:17]} 40. Ne4 {[%clk 0:00:18]}  Bxa4 {[%clk 0:00:17]} 41. Nd6 {[%clk 0:00:18]}  Bb5 {[%clk 0:00:17]} 42. Nxb5 {[%clk 0:00:16]}  cxb5 {[%clk 0:00:18]} 43. Kd5 {[%clk 0:00:17]}  Kd7 {[%clk 0:00:18]} 44. Kc5 {[%clk 0:00:17]}  a6 {[%clk 0:00:19]} 45. d5 {[%clk 0:00:17]}  Kc7 {[%clk 0:00:19]} 46. d6+ {[%clk 0:00:18]}  Kd7 {[%clk 0:00:20]} 47. Kd5 {[%clk 0:00:18]}  g6 {[%clk 0:00:20]} 48. Kc5 {[%clk 0:00:19]}  Ke6 {[%clk 0:00:20]} 49. Kc6 {[%clk 0:00:19]}  Kf5 {[%clk 0:00:21]} 50. d7 {[%clk 0:00:19]}  Kxg5 {[%clk 0:00:21]} 51. d8=Q+ {[%clk 0:00:20]} 1-0


[Site "https://www.chess.com"]

[Event "Titled Tuesday Blitz March 07 Early 2023"]
[White "Zampronha, Wladimir Camilo"]
[Black "Liu, Yi"]
[WhiteFideId "2103087"]
[BlackFideId "3210588"]
[WhiteElo "2176"]
[BlackElo "2264"]
[Result "1/2-1/2"]
[Round "02"]
[TimeControl "180+2"]
[Date "2023.03.07"]
[WhiteClock "0:01:11"]
[BlackClock "0:00:55"]

1. e4 {[%clk 0:03:00]}  c5 {[%clk 0:02:59]} 2. Nf3 {[%clk 0:03:00]}  e6 {[%clk 0:03:00]} 3. d4 {[%clk 0:03:01]}  cxd4 {[%clk 0:03:00]} 4. Nxd4 {[%clk 0:03:01]}  Nf6 {[%clk 0:03:00]} 5. Nc3 {[%clk 0:03:01]}  Nc6 {[%clk 0:03:00]} 6. Nxc6 {[%clk 0:03:00]}  bxc6 {[%clk 0:03:01]} 7. e5 {[%clk 0:03:00]}  Nd5 {[%clk 0:03:01]} 8. Ne4 {[%clk 0:03:01]}  Qc7 {[%clk 0:03:01]} 9. f4 {[%clk 0:03:01]}  Qb6 {[%clk 0:03:01]} 10. c4 {[%clk 0:02:59]}  Bb4+ {[%clk 0:03:01]} 11. Ke2 {[%clk 0:02:58]}  f5 {[%clk 0:03:00]} 12. Nf2 {[%clk 0:02:54]}  Ne7 {[%clk 0:02:53]} 13. Be3 {[%clk 0:02:45]}  Bc5 {[%clk 0:02:50]} 14. Bxc5 {[%clk 0:02:44]}  Qxc5 {[%clk 0:02:51]} 15. Kf3 {[%clk 0:02:38]}  g5 {[%clk 0:02:42]} 16. fxg5 {[%clk 0:01:56]}  Ng6 {[%clk 0:02:20]} 17. Nd3 {[%clk 0:01:48]}  Nxe5+ {[%clk 0:02:05]} 18. Nxe5 {[%clk 0:01:47]}  Qxe5 {[%clk 0:02:05]} 19. Qd2 {[%clk 0:01:42]}  Qe4+ {[%clk 0:02:01]} 20. Kf2 {[%clk 0:01:42]}  Ba6 {[%clk 0:01:53]} 21. Bd3 {[%clk 0:01:40]}  Qd4+ {[%clk 0:01:49]} 22. Qe3 {[%clk 0:01:37]}  Qxe3+ {[%clk 0:01:41]} 23. Kxe3 {[%clk 0:01:37]}  Rg8 {[%clk 0:01:39]} 24. h4 {[%clk 0:01:27]}  Rb8 {[%clk 0:01:36]} 25. b3 {[%clk 0:01:26]}  Ke7 {[%clk 0:01:31]} 26. c5 {[%clk 0:01:15]}  Bxd3 {[%clk 0:01:22]} 27. Kxd3 {[%clk 0:01:16]}  Rb5 {[%clk 0:01:22]} 28. Rac1 {[%clk 0:01:16]}  Rgb8 {[%clk 0:01:11]} 29. Rc4 {[%clk 0:01:12]}  Rb4 {[%clk 0:01:06]} 30. Rhc1 {[%clk 0:01:11]}  a6 {[%clk 0:00:55]} 1/2-1/2


[Site "https://www.chess.com"]

[Event "Titled Tuesday Blitz March 07 Early 2023"]
[White "Bernat, David"]
[Black "Alhadad, Mahmoud"]
[WhiteFideId "2099225"]
[BlackFideId "11501863"]
[WhiteElo "2485"]
[BlackElo "1955"]
[Result "1-0"]
[Round "02"]
[TimeControl "180+2"]
[Date "2023.03.07"]
[WhiteClock "0:00:34"]
[BlackClock "0:00:13"]

1. c4 {[%clk 0:03:00]}  e5 {[%clk 0:02:59]} 2. Nc3 {[%clk 0:03:00]}  Nc6 {[%clk 0:03:00]} 3. g3 {[%clk 0:03:00]}  f5 {[%clk 0:03:00]} 4. Bg2 {[%clk 0:03:01]}  Nf6 {[%clk 0:03:00]} 5. e3 {[%clk 0:03:01]}  Bb4 {[%clk 0:03:01]} 6. Nge2 {[%clk 0:03:02]}  d6 {[%clk 0:02:59]} 7. O-O {[%clk 0:03:02]}  Bxc3 {[%clk 0:02:59]} 8. Nxc3 {[%clk 0:03:02]}  O-O {[%clk 0:02:59]} 9. d4 {[%clk 0:03:03]}  e4 {[%clk 0:02:59]} 10. b3 {[%clk 0:02:54]}  a5 {[%clk 0:02:59]} 11. a3 {[%clk 0:02:51]}  b6 {[%clk 0:02:57]} 12. f3 {[%clk 0:02:46]}  Qe7 {[%clk 0:02:47]} 13. fxe4 {[%clk 0:02:44]}  fxe4 {[%clk 0:02:45]} 14. Qc2 {[%clk 0:02:35]}  Re8 {[%clk 0:02:45]} 15. Bb2 {[%clk 0:02:27]}  Bb7 {[%clk 0:02:34]} 16. d5 {[%clk 0:02:27]}  Nd8 {[%clk 0:02:27]} 17. Rf4 {[%clk 0:02:18]}  Nf7 {[%clk 0:02:08]} 18. Nxe4 {[%clk 0:02:15]}  Nxe4 {[%clk 0:02:03]} 19. Bxe4 {[%clk 0:02:16]}  Ng5 {[%clk 0:01:58]} 20. Bg2 {[%clk 0:01:37]}  Qxe3+ {[%clk 0:01:55]} 21. Kh1 {[%clk 0:01:37]}  Rf8 {[%clk 0:01:13]} 22. Bd4 {[%clk 0:01:20]}  Qe7 {[%clk 0:01:00]} 23. Raf1 {[%clk 0:01:20]}  Rxf4 {[%clk 0:01:00]} 24. gxf4 {[%clk 0:01:09]}  Nf7 {[%clk 0:00:51]} 25. Be4 {[%clk 0:01:09]}  Qh4 {[%clk 0:00:41]} 26. Rg1 {[%clk 0:01:04]}  g6 {[%clk 0:00:17]} 27. Bxg6 {[%clk 0:00:37]}  hxg6 {[%clk 0:00:17]} 28. Qxg6+ {[%clk 0:00:38]}  Kf8 {[%clk 0:00:18]} 29. Bf6 {[%clk 0:00:35]}  Qh6 {[%clk 0:00:13]} 30. Qg8# {[%clk 0:00:34]} 1-0


[Site "https://www.chess.com"]

[Event "Titled Tuesday Blitz March 07 Early 2023"]
[White "Buksa, Nataliya"]
[Black "Smietanska, Wiktoria"]
[WhiteFideId "14123622"]
[BlackFideId "21869359"]
[WhiteElo "2316"]
[BlackElo "1910"]
[Result "1-0"]
[Round "02"]
[TimeControl "180+2"]
[Date "2023.03.07"]
[WhiteClock "0:01:30"]
[BlackClock "0:00:06"]

1. d4 {[%clk 0:03:00]}  Nf6 {[%clk 0:02:59]} 2. Nc3 {[%clk 0:03:01]}  d5 {[%clk 0:02:57]} 3. Bf4 {[%clk 0:03:02]}  c5 {[%clk 0:02:40]} 4. e3 {[%clk 0:03:01]}  e6 {[%clk 0:02:40]} 5. Nf3 {[%clk 0:02:59]}  Bd6 {[%clk 0:02:36]} 6. dxc5 {[%clk 0:02:56]}  Bxf4 {[%clk 0:02:29]} 7. exf4 {[%clk 0:02:56]}  Qa5 {[%clk 0:02:26]} 8. Bd3 {[%clk 0:02:51]}  Qxc5 {[%clk 0:02:24]} 9. O-O {[%clk 0:02:51]}  O-O {[%clk 0:02:23]} 10. Ne2 {[%clk 0:02:51]}  Nc6 {[%clk 0:02:22]} 11. c3 {[%clk 0:02:52]}  a6 {[%clk 0:02:19]} 12. Ned4 {[%clk 0:02:52]}  b5 {[%clk 0:02:17]} 13. a3 {[%clk 0:02:50]}  Bb7 {[%clk 0:02:13]} 14. Re1 {[%clk 0:02:50]}  Nxd4 {[%clk 0:02:03]} 15. Nxd4 {[%clk 0:02:50]}  Rac8 {[%clk 0:01:53]} 16. Qe2 {[%clk 0:02:50]}  Ne4 {[%clk 0:01:44]} 17. f3 {[%clk 0:02:49]}  Nd6 {[%clk 0:01:43]} 18. Rad1 {[%clk 0:02:50]}  Nc4 {[%clk 0:01:43]} 19. Bb1 {[%clk 0:02:50]}  a5 {[%clk 0:01:36]} 20. Kh1 {[%clk 0:02:47]}  b4 {[%clk 0:01:31]} 21. axb4 {[%clk 0:02:47]}  axb4 {[%clk 0:01:32]} 22. Qc2 {[%clk 0:02:24]}  g6 {[%clk 0:01:23]} 23. Ba2 {[%clk 0:01:51]}  Ra8 {[%clk 0:01:06]} 24. Bb3 {[%clk 0:01:46]}  bxc3 {[%clk 0:01:01]} 25. bxc3 {[%clk 0:01:46]}  Rfc8 {[%clk 0:00:59]} 26. Rc1 {[%clk 0:01:43]}  Na3 {[%clk 0:00:47]} 27. Qd2 {[%clk 0:01:43]}  Ba6 {[%clk 0:00:44]} 28. f5 {[%clk 0:01:40]}  exf5 {[%clk 0:00:34]} 29. Nxf5 {[%clk 0:01:31]}  gxf5 {[%clk 0:00:29]} 30. Qg5+ {[%clk 0:01:32]}  Kf8 {[%clk 0:00:18]} 31. Qxf5 {[%clk 0:01:31]}  Kg7 {[%clk 0:00:11]} 32. Bxd5 {[%clk 0:01:30]}  Bc4 {[%clk 0:00:09]} 33. Qxf7+ {[%clk 0:01:29]}  Kh6 {[%clk 0:00:06]} 34. Qf6+ {[%clk 0:01:29]}  Kh5 {[%clk 0:00:06]} 35. Re5# {[%clk 0:01:30]} 1-0


[Site "https://www.chess.com"]

[Event "Titled Tuesday Blitz March 07 Early 2023"]
[White "Yosha_Iglesias"]
[Black "Tsyhanchuk, Stanislav"]
[BlackFideId "13505130"]
[WhiteElo "2478"]
[BlackElo "2173"]
[Result "1-0"]
[Round "02"]
[TimeControl "180+2"]
[Date "2023.03.07"]
[WhiteClock "0:00:13"]
[BlackClock "0:00:09"]

1. d4 {[%clk 0:03:00]}  Nf6 {[%clk 0:02:59]} 2. Nf3 {[%clk 0:03:00]}  e6 {[%clk 0:02:54]} 3. e3 {[%clk 0:03:00]}  b6 {[%clk 0:02:46]} 4. Bd3 {[%clk 0:03:00]}  Bb7 {[%clk 0:02:45]} 5. O-O {[%clk 0:02:59]}  c5 {[%clk 0:02:41]} 6. c4 {[%clk 0:02:59]}  Be7 {[%clk 0:02:37]} 7. Nc3 {[%clk 0:02:59]}  d6 {[%clk 0:02:36]} 8. d5 {[%clk 0:02:39]}  O-O {[%clk 0:02:25]} 9. e4 {[%clk 0:02:36]}  e5 {[%clk 0:02:24]} 10. h3 {[%clk 0:02:33]}  a6 {[%clk 0:02:23]} 11. a4 {[%clk 0:02:32]}  a5 {[%clk 0:02:22]} 12. g3 {[%clk 0:02:17]}  Na6 {[%clk 0:02:17]} 13. Nh4 {[%clk 0:02:17]}  Bc8 {[%clk 0:02:15]} 14. Kh2 {[%clk 0:02:11]}  g6 {[%clk 0:02:09]} 15. Bh6 {[%clk 0:02:05]}  Qd7 {[%clk 0:02:03]} 16. g4 {[%clk 0:01:58]}  Nb4 {[%clk 0:01:40]} 17. Bb1 {[%clk 0:01:57]}  Nxg4+ {[%clk 0:01:22]} 18. hxg4 {[%clk 0:01:50]}  Bxh4 {[%clk 0:01:22]} 19. Bxf8 {[%clk 0:01:49]}  Kxf8 {[%clk 0:01:14]} 20. f3 {[%clk 0:01:38]}  Bg5 {[%clk 0:01:13]} 21. Ne2 {[%clk 0:01:38]}  h5 {[%clk 0:01:11]} 22. Rg1 {[%clk 0:01:37]}  hxg4 {[%clk 0:00:48]} 23. Rxg4 {[%clk 0:01:35]}  Bf6 {[%clk 0:00:47]} 24. Qh1 {[%clk 0:00:58]}  Kg7 {[%clk 0:00:46]} 25. Ng3 {[%clk 0:00:52]}  Kf8 {[%clk 0:00:39]} 26. Kg2 {[%clk 0:00:50]}  Qb7 {[%clk 0:00:23]} 27. Rh4 {[%clk 0:00:15]}  Bxh4 {[%clk 0:00:22]} 28. Qxh4 {[%clk 0:00:16]}  Bd7 {[%clk 0:00:12]} 29. f4 {[%clk 0:00:14]}  exf4 {[%clk 0:00:12]} 30. Qxf4 {[%clk 0:00:14]}  Qc7 {[%clk 0:00:10]} 31. Qf6 {[%clk 0:00:13]}  Bc8 {[%clk 0:00:10]} 32. e5 {[%clk 0:00:13]}  dxe5 {[%clk 0:00:10]} 33. Bxg6 {[%clk 0:00:12]}  Qe7 {[%clk 0:00:09]} 34. Qh8# {[%clk 0:00:13]} 1-0


[Site "https://www.chess.com"]